bitfinex/quotes_SOLUSD_20250721
["timestamp","ask_amount","ask_price","bid_price","bid_amount"]
[1753110907457,32.43329802,197.76,197.69,5.0584248]
[1753110907656,32.43329802,197.76,197.7,15.64861405]
[1753110907854,32.43329802,197.76,197.69,5.0584248]
[1753110908060,16.78468397,197.72,197.67,15.64861405]
[1753110908269,15.64861405,197.71,197.65,15.64861405]
[1753110908448,32.43329802,197.69,197.63,15.64861405]
[1753110908647,15.64861405,197.66,197.6,0.25933603]
[1753110908844,16.78468397,197.63,197.6,0.25933603]
[1753110909045,15.64861405,197.63,197.6,0.25933603]
[1753110909286,15.64861405,197.61,197.6,0.25933603]
[1753110910256,15.64861405,197.66,197.6,15.90795008]
[1753110910467,16.78468397,197.65,197.6,0.25933603]
[1753110910671,2.63608086,197.7,197.66,26.0]
[1753110910878,15.64861405,197.68,197.62,15.64861405]
[1753110911177,16.78468397,197.69,197.61,66.68]
[1753110911365,16.78468397,197.66,197.62,15.64861405]
[1753110911572,16.78468397,197.68,197.63,15.64861405]
[1753110911877,16.33861405,197.67,197.61,41.64861405]
[1753110912057,15.64861405,197.67,197.61,41.64861405]
[1753110912256,15.64861405,197.64,197.6,0.25933603]
[1753110912454,10.21720371,197.74,197.6,0.25933603]
[1753110912755,14.9243815,197.82,197.64,5.05970451]
[1753110912756,0.69,197.77,197.64,5.05970451]
[1753110913068,15.64861405,197.79,197.72,15.64861405]
[1753110913278,7.68991394,197.81,197.74,15.64861405]
[1753110913279,18.28317185,197.81,197.74,15.64861405]
[1753110913456,2.6345578,197.81,197.77,15.64861405]
[1753110913650,15.70861405,197.84,197.78,15.64861405]
[1753110913868,0.06,197.84,197.8,15.64861405]
[1753110914677,0.06,197.84,197.81,15.64861405]
[1753110915194,0.06,197.84,197.8,0.7]
[1753110915489,0.06,197.84,197.81,15.64861405]
[1753110915880,0.06,197.84,197.8,15.64861405]
[1753110916380,0.06,197.84,197.79,26.0]
[1753110916695,0.06,197.84,197.8,15.64861405]
[1753110917070,15.70861405,197.84,197.75,0.7]
[1753110917275,16.78468397,197.83,197.79,15.64861405]
[1753110917503,16.78468397,197.83,197.8,15.64861405]
[1753110917705,0.06,197.84,197.81,15.64861405]
[1753110919394,0.06,197.84,197.82,15.64861405]
[1753110919593,0.06,197.84,197.82,16.34861405]
[1753110920188,0.06,197.84,197.83,16.34861405]
[1753110921073,0.06,197.84,197.83,21.40345911]
[1753110922175,0.06,197.84,197.83,5.75484506]
[1753110922375,0.06,197.84,197.83,21.90894361]
[1753110923198,0.06,197.84,197.83,5.75484506]
[1753110923393,0.06,197.84,197.83,21.90894361]
[1753110923597,12.62683163,198.0,197.83,21.90894361]
[1753110923598,22.73841019,198.28,197.95,35.8503]
[1753110923895,22.73841019,198.28,197.86,26.0]
[1753110923896,22.73841019,198.28,198.12,9.8503]
[1753110924114,15.153429,198.28,198.13,40.40471912]
[1753110924278,0.69,198.3,198.26,15.64861405]
[1753110924480,0.69,198.3,198.24,15.64861405]
[1753110924779,0.69,198.3,198.25,20.69275024]
[1753110924974,0.94841,198.33,198.26,15.64861405]
[1753110925178,0.94841,198.33,198.21,0.50451541]
[1753110925179,0.25841,198.33,198.3,15.64861405]
[1753110925407,0.25841,198.33,198.25,26.0]
[1753110925408,0.25841,198.33,198.27,26.0]
[1753110925585,0.25841,198.33,198.3,15.64861405]
[1753110925917,0.25841,198.33,198.24,17.65529347]
[1753110925918,0.69,198.32,198.24,20.69293093]
[1753110926087,16.78468397,198.31,198.25,15.64861405]
[1753110926286,0.25841,198.33,198.27,26.0]
[1753110926610,0.25841,198.33,198.24,5.54875594]
[1753110926611,1e-08,198.33,198.32,15.64861405]
[1753110926799,1e-08,198.33,198.32,21.1952054]
[1753110926973,1e-08,198.33,198.32,16.15284962]
[1753110927176,1e-08,198.33,198.32,15.64861405]
[1753110927379,1e-08,198.33,198.31,15.64861405]
[1753110927575,1e-08,198.33,198.29,26.0]
[1753110927881,1e-08,198.33,198.32,15.64861405]
[1753110928276,1e-08,198.33,198.29,26.0]
[1753110928592,1e-08,198.33,198.32,0.97034119]
[1753110929099,1e-08,198.33,198.32,16.61895524]
[1753110929286,0.06086344,198.37,198.32,41.25034119]
[1753110929489,0.06086344,198.37,198.35,15.64861405]
[1753110929795,0.06086344,198.37,198.34,26.0]
[1753110929796,0.06086344,198.37,198.34,0.50418473]
[1753110929998,0.06086344,198.37,198.36,15.64861405]
[1753110930391,0.06086344,198.37,198.35,0.50415931]
[1753110930697,16.78468397,198.44,198.33,16.1528242]
[1753110930698,0.69,198.41,198.33,16.1528242]
[1753110930895,16.78468397,198.39,198.36,0.4634576]
[1753110931209,16.78468397,198.39,198.28,45.34328427]
[1753110931210,16.78468397,198.37,198.31,15.64861405]
[1753110931395,33.11329802,198.37,198.28,40.3]
[1753110931586,33.11329802,198.37,198.3,15.64861405]
[1753110931788,15.64861405,198.33,198.25,0.50441361]
[1753110931982,32.43329802,198.31,198.25,15.64861405]
[1753110932218,32.43329802,198.31,198.22,0.50448996]
[1753110932219,0.68,198.3,198.22,0.50448996]
[1753110932389,16.78468397,198.29,198.15,40.26]
[1753110932587,16.78468397,198.27,198.25,15.64861405]
[1753110932800,16.84468397,198.31,198.16,0.50464271]
[1753110933010,32.49329802,198.31,198.24,15.64861405]
[1753110933389,16.78468397,198.25,198.18,0.50459178]
[1753110933707,0.68,198.3,198.24,15.64861405]
[1753110933912,0.68,198.3,198.15,40.26]
[1753110933913,16.78468397,198.29,198.26,15.64861405]
[1753110934115,16.78468397,198.29,198.24,15.64861405]
[1753110934419,16.78468397,198.27,198.21,15.64861405]
[1753110934721,5.72354393,198.28,198.2,15.64861405]
[1753110934882,16.78468397,198.27,198.22,15.64861405]
[1753110935085,16.78468397,198.27,198.24,15.64861405]
[1753110935303,5.10283274,198.31,198.24,15.64861405]
[1753110935304,33.11329802,198.3,198.24,15.64861405]
[1753110935506,32.43329802,198.28,198.22,15.64861405]
[1753110935809,5.1027994,198.31,198.19,15.64861405]
[1753110935810,16.78468397,198.24,198.19,15.64861405]
[1753110935992,16.78468397,198.24,198.22,26.0]
[1753110936308,16.78468397,198.24,198.2,15.64861405]
[1753110936309,16.78468397,198.26,198.2,15.64861405]
[1753110936612,16.78468397,198.26,198.16,0.50464271]
[1753110936797,16.78468397,198.26,198.21,15.64861405]
[1753110937106,38.15725157,198.26,198.18,26.50459178]
[1753110937310,15.64861405,198.25,198.18,15.64861405]
[1753110937497,15.64861405,198.25,198.16,0.50464271]
[1753110937498,15.64861405,198.25,198.19,15.64861405]
[1753110937694,15.64861405,198.2,198.12,0.50474459]
[1753110938013,15.64861405,198.16,198.09,40.22]
[1753110938186,15.64861405,198.16,198.03,46.0053]
[1753110938187,0.68,198.16,198.05,40.22]
[1753110938387,16.78468397,198.2,198.15,15.64861405]
[1753110938588,16.78468397,198.25,198.13,40.22]
[1753110938916,21.8290681,198.25,198.16,26.0]
[1753110939121,32.43329802,198.23,198.15,0.50466818]
[1753110939333,0.68,198.24,198.05,0.50492299]
[1753110939488,32.43329802,198.17,198.1,15.64861405]
[1753110939689,32.43329802,198.17,198.06,40.28]
[1753110939690,16.78468397,198.15,198.07,0.50487201]
[1753110939890,16.78468397,198.12,198.06,40.28]
[1753110940191,16.32861405,198.14,198.06,40.28]
[1753110940416,16.78468397,198.12,198.07,15.64861405]
[1753110940715,16.78468397,198.12,198.0,5.05029065]
[1753110940716,16.78468397,198.07,197.96,15.64861405]
[1753110940915,16.78468397,197.98,197.92,16.15386869]
[1753110941206,18.35141269,198.06,197.83,27.62748384]
[1753110941207,16.78468397,197.96,197.91,15.64861405]
[1753110941415,32.43329802,197.94,197.88,15.64861405]
[1753110941714,42.91628798,198.06,197.84,0.50545895]
[1753110941715,16.78468397,197.91,197.86,15.64861405]
[1753110941895,16.78468397,197.91,197.85,15.64861405]
[1753110941896,0.68,197.9,197.85,15.64861405]
[1753110942209,15.64861405,197.88,197.82,0.50551005]
[1753110942408,0.68,197.89,197.82,15.64861405]
[1753110942593,16.78468397,197.85,197.77,15.64861405]
[1753110942789,16.78468397,197.81,197.75,0.505689]
[1753110943000,16.78468397,197.81,197.76,15.64861405]
[1753110943306,32.43329802,197.82,197.76,15.64861405]
[1753110943512,32.43329802,197.82,197.73,15.64861405]
[1753110943513,16.78468397,197.78,197.73,15.64861405]
[1753110943711,16.78468397,197.76,197.72,40.42]
[1753110943907,17.46468397,197.76,197.72,15.64861405]
[1753110944111,5.05494481,197.83,197.75,15.64861405]
[1753110944112,16.78468397,197.83,197.75,15.64861405]
[1753110944296,16.78468397,197.79,197.74,15.64861405]
[1753110944498,16.78468397,197.79,197.75,15.64861405]
[1753110944695,0.68,197.87,197.78,15.64861405]
[1753110945012,32.43329802,197.86,197.79,0.50558673]
[1753110945190,40.4,197.98,197.83,15.64861405]
[1753110945391,40.4,197.98,197.79,0.50558673]
[1753110945392,32.43329802,197.91,197.84,15.64861405]
[1753110945613,0.68,197.95,197.9,15.64861405]
[1753110945818,22.17493127,198.03,197.88,26.0]
[1753110945819,15.64861405,197.99,197.93,15.64861405]
[1753110946208,16.32861405,198.0,197.94,15.64861405]
[1753110946608,0.68,198.0,197.97,15.64861405]
[1753110946804,0.68,198.0,197.96,15.64861405]
[1753110947015,0.68,198.0,197.97,15.64861405]
[1753110947337,15.64861405,198.03,197.97,15.64861405]
[1753110947496,0.68,198.04,197.99,15.64861405]
[1753110947892,16.78468397,198.03,197.99,15.64861405]
[1753110948096,16.78468397,198.03,198.0,15.64861405]
[1753110948412,16.78468397,198.03,197.95,0.50517807]
[1753110948413,15.64861405,198.08,198.02,15.64861405]
[1753110948639,65.3243815,198.16,198.03,15.64861405]
[1753110948640,16.32861405,198.09,198.03,15.64861405]
[1753110948793,16.32861405,198.09,198.02,15.64861405]
[1753110949121,0.68,198.09,198.02,15.64861405]
[1753110949311,16.32861405,198.09,198.02,15.64861405]
[1753110949507,16.32861405,198.09,198.02,15.29033242]
[1753110949816,16.78468397,198.07,198.0,40.3]
[1753110949992,16.78468397,198.07,198.02,15.64861405]
[1753110950200,9.5007,198.2,198.0,40.8050505]
[1753110950201,0.68,198.14,198.06,15.64861405]
[1753110950400,0.68,198.14,198.01,40.84502499]
[1753110950613,16.78468397,198.07,198.02,15.64861405]
[1753110950804,0.68,198.06,198.02,15.64861405]
[1753110951009,16.78468397,198.07,198.02,15.64861405]
[1753110951525,16.78468397,198.07,198.03,15.64861405]
[1753110951710,16.78468397,198.09,198.04,15.64861405]
[1753110952101,16.78468397,198.07,198.04,15.64861405]
[1753110952624,16.78468397,198.12,198.06,15.64861405]
[1753110952926,32.43329802,198.12,198.06,15.64861405]
[1753110953103,16.78468397,198.12,198.07,15.64861405]
[1753110953295,16.78468397,198.1,198.08,15.64861405]
[1753110953502,16.78468397,198.14,198.08,15.64861405]
[1753110953906,16.78468397,198.14,198.1,15.64861405]
[1753110954428,0.68,198.13,198.08,16.15346057]
[1753110954636,0.68,198.12,198.08,15.64861405]
[1753110954930,0.68,198.11,198.08,55.84861405]
[1753110955233,0.68,198.11,198.0,12.62602267]
[1753110955234,17.46468397,198.1,198.0,12.62602267]
[1753110955401,17.46468397,198.1,198.05,15.64861405]
[1753110955601,16.78468397,198.09,198.05,15.64861405]
[1753110955809,0.68,198.08,198.03,16.15358804]
[1753110956011,16.78468397,198.09,198.04,40.16]
[1753110956012,0.68,198.07,198.04,40.16]
[1753110956207,27.88026663,199.18,198.04,40.16]
[1753110956208,0.68,198.06,198.04,40.16]
[1753110956420,16.78468397,198.04,197.99,5.05052343]
[1753110956617,16.78468397,198.04,197.98,0.50510152]
[1753110956618,32.43329802,198.02,197.98,5.05093931]
[1753110956921,32.43329802,198.02,197.84,36.34]
[1753110956922,16.78468397,197.98,197.94,40.14]
[1753110957126,16.78468397,197.96,197.94,40.14]
[1753110957304,16.78468397,197.96,197.93,5.05209787]
[1753110957501,17.46468397,197.96,197.93,5.05209787]
[1753110957830,32.43329802,197.94,197.88,20.70218186]
[1753110958021,16.78468397,197.92,197.9,40.12]
[1753110958220,16.78468397,197.96,197.9,40.12]
[1753110958525,0.68,197.92,197.89,40.12]
[1753110958931,0.68,197.91,197.89,40.1]
[1753110959116,0.68,197.9,197.87,5.05381862]
[1753110959321,16.78468397,197.94,197.89,15.64861405]
[1753110959630,16.78468397,197.94,197.9,15.64861405]
[1753110959831,15.64861405,197.97,197.88,40.58535678]
[1753110959832,16.78468397,197.98,197.92,15.64861405]
[1753110960012,32.43329802,197.98,197.92,15.64861405]
[1753110960207,15.64861405,197.93,197.88,0.50535678]
[1753110960441,16.78468397,197.96,197.83,0.5054845]
[1753110960442,16.78468397,197.88,197.83,0.5054845]
[1753110960616,15.64861405,197.96,197.8,0.03]
[1753110960617,15.64861405,197.85,197.8,0.03]
[1753110960928,15.64861405,197.84,197.8,5.08559555]
[1753110961227,0.71,197.92,197.84,5.05458956]
[1753110961437,32.43329802,197.91,197.85,40.08]
[1753110961622,16.78468397,197.91,197.85,40.5854334]
[1753110961818,32.43329802,197.91,197.85,15.64861405]
[1753110962015,16.78468397,197.91,197.86,55.70861405]
[1753110962222,16.78468397,197.94,197.9,15.64861405]
[1753110962408,17.49468397,197.94,197.91,15.64861405]
[1753110962606,16.78468397,197.92,197.9,15.64861405]
[1753110962832,0.71,197.96,197.91,15.64861405]
[1753110963036,16.35861405,198.02,197.95,15.64861405]
[1753110963218,16.78468397,198.01,197.96,55.70861405]
[1753110963530,0.71,198.0,197.97,15.64861405]
[1753110963843,16.78468397,198.02,197.99,15.64861405]
[1753110964034,0.71,198.05,198.01,15.64861405]
[1753110964216,22.27817977,198.08,198.03,15.64861405]
[1753110964612,37.92679382,198.08,198.02,55.68861405]
[1753110964835,17.49468397,198.07,198.02,55.68861405]
[1753110965533,17.49468397,198.07,198.03,20.69835398]
[1753110965738,16.78468397,198.07,198.03,20.69835398]
[1753110965932,16.78468397,198.07,198.03,60.69835398]
[1753110966142,16.78468397,198.07,198.03,20.69835398]
[1753110966329,16.78468397,198.07,198.02,5.04999178]
[1753110966519,16.78468397,198.07,198.02,15.64861405]
[1753110966520,13.41809875,198.04,198.02,15.64861405]
[1753110966712,13.41809875,198.04,198.03,39.98]
[1753110966911,12.70809875,198.04,198.03,55.62861405]
[1753110967325,0.5,198.09,198.03,73.30270382]
[1753110967526,17.28468397,198.09,198.08,15.64861405]
[1753110967731,17.28468397,198.09,198.08,55.60861405]
[1753110967732,1e-08,198.09,198.08,55.60861405]
[1753110967932,1e-08,198.09,198.08,81.64861405]
[1753110968111,1e-08,198.09,198.08,41.64861405]
[1753110968316,1e-08,198.09,198.08,40.0]
[1753110968536,1e-08,198.09,198.04,26.50494849]
[1753110968537,1e-08,198.09,198.06,15.64861405]
[1753110968738,17.49468397,198.08,198.07,40.0]
[1753110968938,1e-08,198.09,198.06,55.64861405]
[1753110969113,0.71,198.08,198.05,15.64861405]
[1753110969318,0.71,198.08,198.06,40.0]
[1753110969319,0.71,198.07,198.06,40.0]
[1753110969739,17.49468397,198.07,198.06,39.98]
[1753110970049,16.78468397,198.07,198.06,39.98]
[1753110970416,16.78468397,198.06,198.02,5.04998271]
[1753110970617,16.78468397,198.06,198.03,39.94]
[1753110970618,16.78468397,198.04,198.03,39.94]
[1753110970819,15.64861405,198.06,198.03,39.94]
[1753110971025,0.71,198.08,198.04,15.64861405]
[1753110971329,1e-08,198.09,198.03,39.94]
[1753110971330,1e-08,198.09,198.07,15.64861405]
[1753110971649,1e-08,198.09,198.08,56.09346057]
[1753110971819,1e-08,198.09,198.08,55.58861405]
[1753110972430,1e-08,198.09,198.07,5.55353051]
[1753110972635,1e-08,198.09,198.08,55.58861405]
[1753110972941,1e-08,198.09,198.07,5.55353051]
[1753110973445,1e-08,198.09,198.08,60.59707931]
[1753110973644,1e-08,198.09,198.08,15.64861405]
[1753110973851,0.71000001,198.09,198.04,15.64861405]
[1753110974026,0.71000001,198.09,198.01,5.55527497]
[1753110974027,0.71,198.08,198.01,5.55527497]
[1753110974222,0.71,198.08,198.04,15.64861405]
[1753110974541,16.78468397,198.05,198.0,5.05029515]
[1753110974726,16.78468397,198.03,198.01,39.9]
[1753110974921,16.78468397,198.03,198.01,55.54861405]
[1753110975121,16.78468397,198.07,198.02,15.64861405]
[1753110975345,16.78468397,198.07,197.92,25.26174803]
[1753110975346,16.78468397,198.05,197.93,0.50522912]
[1753110975654,0.71,198.06,197.8,0.03]
[1753110975655,16.78468397,197.93,197.8,0.03]
[1753110975827,16.78468397,197.91,197.8,0.03]
[1753110976154,32.43329802,197.82,197.8,0.03]
[1753110976335,33.14329802,197.81,197.8,0.03]
[1753110976841,16.78468397,197.81,197.8,0.03]
[1753110977034,33.14329802,197.81,197.8,0.03]
[1753110977338,38.10249773,197.81,197.8,0.03]
[1753110978628,16.78468397,197.8,197.72,0.03]
[1753110978841,0.71,197.8,197.72,0.03]
[1753110979244,16.78468397,197.75,197.72,0.03]
[1753110979439,16.78468397,197.73,197.72,0.03]
[1753110979945,16.78468397,197.75,197.72,0.03]
[1753110980245,0.71,197.77,197.72,20.63781376]
[1753110980246,16.78468397,197.77,197.72,20.63781376]
[1753110980543,16.78468397,197.75,197.72,0.03]
[1753110980751,37.39249773,197.8,197.74,20.60781376]
[1753110980941,37.39249773,197.8,197.72,0.03]
[1753110980942,37.39249773,197.8,197.75,60.62781376]
[1753110981139,16.78468397,197.82,197.77,20.60781376]
[1753110981446,21.31781376,197.82,197.77,20.60781376]
[1753110981636,38.10249773,197.81,197.76,25.66444806]
[1753110981946,0.71,197.8,197.77,40.0]
[1753110982348,0.71,197.79,197.77,40.0]
[1753110982649,16.78468397,197.8,197.77,60.60781376]
[1753110983330,16.78468397,197.84,197.79,20.60781376]
[1753110983534,0.71,197.83,197.8,60.54781376]
[1753110983734,0.71,197.86,197.81,20.60781376]
[1753110983933,0.71,197.86,197.82,20.60781376]
[1753110984132,19.3221,197.97,197.82,20.60781376]
[1753110984133,20.60781376,197.9,197.85,20.60781376]
[1753110984452,0.71,197.91,197.86,60.54781376]
[1753110984648,0.71,197.91,197.87,20.60781376]
[1753110984825,16.78468397,197.91,197.87,20.60781376]
[1753110985026,0.71,197.94,197.86,65.94]
[1753110985027,21.31781376,197.94,197.86,65.94]
[1753110985226,0.71,197.94,197.89,20.60781376]
[1753110985456,21.31781376,197.94,197.88,20.60781376]
[1753110985647,21.31781376,197.94,197.89,25.6611262]
[1753110985833,16.78468397,197.93,197.89,25.6611262]
[1753110986022,5.05074413,198.0,197.89,25.6611262]
[1753110986023,16.78468397,197.96,197.89,31.05331244]
[1753110986229,16.78468397,197.94,197.9,60.54781376]
[1753110986854,16.78468397,197.95,197.91,20.60781376]
[1753110987153,0.71,197.95,197.91,25.66049981]
[1753110987345,18.8936,198.05,197.91,25.66049981]
[1753110987346,0.71,198.03,197.94,20.60781376]
[1753110987551,0.71,198.03,197.93,26.0]
[1753110987552,0.71,198.02,197.99,20.60781376]
[1753110987752,0.71,198.02,198.0,20.60781376]
[1753110987937,16.78468397,198.01,198.0,20.60781376]
[1753110988138,16.78468397,198.01,197.91,5.05268605]
[1753110988139,38.10249773,198.01,197.91,5.05268605]
[1753110988344,16.78468397,197.96,197.92,60.54781376]
[1753110988663,17.49468397,197.96,197.93,20.60781376]
[1753110988837,16.78468397,197.94,197.92,20.60781376]
[1753110989171,0.71,197.93,197.91,25.66045528]
[1753110989328,16.78468397,197.96,197.91,25.66045528]
[1753110989329,16.78468397,197.96,197.92,60.54781376]
[1753110989530,17.49468397,197.96,197.92,60.54781376]
[1753110989749,17.49468397,197.96,197.92,20.60781376]
[1753110989980,17.49468397,197.96,197.93,34.94]
[1753110990147,16.78468397,197.94,197.93,39.94]
[1753110990582,17.49468397,197.94,197.91,39.94]
[1753110990752,17.49468397,197.94,197.86,25.6618924]
[1753110990753,37.39249773,197.92,197.86,25.6618924]
[1753110990943,37.39249773,197.92,197.87,39.94]
[1753110990944,16.78468397,197.9,197.87,39.94]
[1753110991261,16.78468397,197.88,197.87,44.9938035]
[1753110991478,16.78468397,197.91,197.87,65.60161726]
[1753110991780,16.78468397,197.93,197.87,44.9938035]
[1753110991952,16.78468397,197.93,197.89,20.60781376]
[1753110992269,16.78468397,197.93,197.9,39.94]
[1753110992455,16.78468397,197.91,197.9,39.94]
[1753110993577,16.78468397,197.91,197.89,25.6611262]
[1753110994353,16.78468397,197.91,197.88,39.94]
[1753110994354,17.43468397,197.9,197.88,39.94]
[1753110994578,17.43468397,197.9,197.88,44.99341909]
[1753110994743,16.78468397,197.9,197.88,44.99341909]
[1753110995082,16.78468397,197.98,197.89,20.60781376]
[1753110995247,16.78468397,197.95,197.88,43.68733863]
[1753110995444,0.65,197.96,197.88,43.68733863]
[1753110995445,16.78468397,197.93,197.88,5.05341909]
[1753110995744,37.39249773,197.91,197.86,5.05407864]
[1753110995941,16.78468397,197.87,197.85,0.03]
[1753110996344,0.65,197.86,197.85,39.95]
[1753110996545,17.43468397,197.86,197.85,0.03]
[1753110996780,38.04249773,197.86,197.85,0.03]
[1753110996948,17.43468397,197.86,197.85,0.03]
[1753110998046,16.78468397,197.86,197.85,55.48810451]
[1753110998287,16.78468397,197.86,197.85,15.56810451]
[1753110998581,16.18810451,197.9,197.85,55.48810451]
[1753110998582,16.78468397,197.89,197.85,55.48810451]
[1753110998784,16.78468397,197.93,197.88,15.53810451]
[1753110998948,16.78468397,197.91,197.89,39.92]
[1753110999148,0.65,197.91,197.89,39.92]
[1753110999383,0.65,197.91,197.9,5.05305709]
[1753111000089,0.65,197.91,197.85,12.66535885]
[1753111000090,16.78468397,197.9,197.85,0.03]
[1753111000249,16.78468397,197.85,197.77,0.03]
[1753111000454,0.65,197.89,197.78,39.92]
[1753111000455,15.53810451,197.83,197.78,39.92]
[1753111000680,16.78468397,197.81,197.78,39.92]
[1753111001220,15.53810451,197.83,197.78,39.92]
[1753111001221,16.18810451,197.83,197.78,39.92]
[1753111001373,16.78468397,197.79,197.77,0.03]
[1753111001554,16.78468397,197.79,197.78,39.92]
[1753111002153,16.78468397,197.83,197.78,55.45810451]
[1753111002365,16.78468397,197.81,197.78,55.45810451]
[1753111003253,16.78468397,197.81,197.79,5.05586733]
[1753111003454,15.53810451,197.85,197.79,20.59397184]
[1753111003680,16.78468397,197.85,197.82,15.53810451]
[1753111003891,16.78468397,197.85,197.82,55.45810451]
[1753111004049,17.47351351,197.94,197.82,55.45810451]
[1753111004050,0.65,197.89,197.84,15.53810451]
[1753111004386,0.65,197.89,197.82,39.92]
[1753111004387,0.65,197.89,197.85,15.53810451]
[1753111004683,0.65,197.89,197.86,39.92]
[1753111005081,16.78468397,197.92,197.88,15.53810451]
[1753111005295,16.78468397,197.92,197.89,15.53810451]
[1753111005485,0.65,197.95,197.91,15.53810451]
[1753111005675,5.05064616,198.0,197.9,39.92]
[1753111005676,0.65,197.97,197.92,15.53810451]
[1753111005876,17.43468397,197.96,197.92,15.53810451]
[1753111006105,0.65,197.95,197.92,15.53810451]
[1753111006279,32.32278848,197.93,197.92,39.92]
[1753111006489,32.32278848,197.93,197.87,20.59192772]
[1753111006490,16.78468397,197.92,197.89,39.92]
[1753111006668,17.43468397,197.92,197.89,39.92]
[1753111006866,17.43468397,197.92,197.89,55.45810451]
[1753111007098,5.05064616,198.0,197.87,5.05382321]
[1753111007099,15.53810451,197.94,197.88,15.53810451]
[1753111007301,16.78468397,197.9,197.89,39.92]
[1753111007600,16.78468397,197.9,197.89,44.97331244]
[1753111007989,16.78468397,197.9,197.89,5.05331244]
[1753111008185,16.78468397,197.9,197.89,44.97331244]
[1753111008508,32.97278848,197.94,197.89,44.97331244]
[1753111008804,16.78468397,197.92,197.89,44.97331244]
[1753111009093,17.43468397,197.92,197.9,39.92]
[1753111009288,16.78468397,197.92,197.9,55.45810451]
[1753111009495,16.78468397,197.95,197.91,20.59090628]
[1753111009788,16.78468397,197.93,197.9,60.5111581]
[1753111010087,16.78468397,197.91,197.9,39.92]
[1753111010287,15.53810451,197.94,197.9,55.45810451]
[1753111010288,16.78468397,197.94,197.9,55.45810451]
[1753111010489,0.65,197.98,197.9,55.45810451]
[1753111010490,0.65,197.98,197.93,15.53810451]
[1753111010689,2.63219918,198.02,197.91,0.50528017]
[1753111010690,16.78468397,197.97,197.94,39.92]
[1753111010890,0.65,198.02,197.94,40.42520359]
[1753111011199,0.65,198.06,197.97,26.0]
[1753111011384,0.65,198.06,197.99,17.67766047]
[1753111011890,16.78468397,198.05,198.03,15.53810451]
[1753111012593,16.78468397,198.05,198.02,55.43810451]
[1753111012795,17.43468397,198.03,198.02,39.9]
[1753111013296,17.43468397,198.03,198.02,15.53810451]
[1753111013474,17.43468397,198.03,198.02,20.58809946]
[1753111014073,16.78468397,198.02,198.01,39.9]
[1753111014382,16.78468397,198.02,198.01,55.43810451]
[1753111014693,16.78468397,198.02,197.97,17.67944637]
[1753111014694,16.78468397,198.01,197.97,60.4893749]
[1753111014897,16.78468397,197.99,197.97,60.4893749]
[1753111015074,17.43468397,197.99,197.97,20.5893749]
[1753111015272,17.43468397,197.98,197.96,15.53810451]
[1753111015675,17.43468397,197.98,197.96,60.48951579]
[1753111015894,16.78468397,198.02,197.97,15.53810451]
[1753111016098,16.78468397,198.02,197.99,15.53810451]
[1753111016282,16.78468397,198.02,197.99,55.41810451]
[1753111016599,0.65,198.02,197.99,55.41810451]
[1753111016800,0.65,198.02,197.99,39.88]
[1753111017106,0.06,198.04,197.99,15.53810451]
[1753111017396,16.78468397,198.0,197.97,15.53810451]
[1753111017604,16.78468397,197.98,197.97,44.93123768]
[1753111017776,16.18810451,198.01,197.97,44.93123768]
[1753111018097,0.06,198.04,197.97,44.93123768]
[1753111018098,17.43468397,198.0,197.97,44.93123768]
[1753111018302,16.78468397,198.01,197.97,44.93123768]
[1753111018487,16.78468397,197.98,197.97,44.93123768]
[1753111018682,0.65,197.98,197.96,60.46959069]
[1753111018905,0.65,197.97,197.91,5.05280177]
[1753111019092,16.78468397,197.96,197.94,15.53810451]
[1753111019403,16.78468397,197.96,197.95,39.88]
[1753111019590,16.78468397,197.96,197.95,44.93178075]
[1753111019784,16.78468397,197.96,197.9,26.0]
[1753111019785,0.65,197.96,197.9,26.0]
[1753111019977,16.18810451,197.96,197.91,44.93280177]
[1753111020183,16.78468397,197.94,197.91,60.47090628]
[1753111020383,16.78468397,197.98,197.93,15.53810451]
[1753111020686,0.65,197.99,197.91,44.93280177]
[1753111020687,32.32278848,197.99,197.91,57.56480621]
[1753111020898,0.65,197.98,197.95,15.53810451]
[1753111021088,5.04594485,198.18,198.01,26.0]
[1753111021288,12.61168469,198.23,198.05,41.53810451]
[1753111021612,15.53810451,198.17,198.08,20.58656977]
[1753111021900,15.53810451,198.17,198.08,60.44656977]
[1753111021901,16.78468397,198.16,198.08,60.44656977]
[1753111022210,15.53810451,198.21,198.08,73.77773293]